lending/lending_fUSD_20250920
["ID","MTS","AMOUNT","RATE_DAILY","PERIOD"]
[386534652,1758364231997,-151.0,0.00019985,2]
[386534654,1758364232006,-151.0,0.00019985,2]
[386534656,1758364232016,-2010.74220556,0.00019987,2]
[386534657,1758364232025,-151.0,0.00019988,2]
[386534658,1758364232035,-151.0,0.00019988,2]
[386534660,1758364232045,-151.0,0.00019988,2]
[386534661,1758364232054,-500.0,0.00019988,2]
[386534662,1758364232063,-500.0,0.00019988,2]
[386534663,1758364232073,-500.0,0.00019988,2]
[386534664,1758364232083,-500.0,0.00019988,2]
[386534665,1758364232092,-500.0,0.00019988,2]
[386534666,1758364232101,-500.0,0.00019988,2]
[386534667,1758364232111,-500.0,0.00019988,2]
[386534668,1758364232120,-151.0,0.00019988,2]
[386534669,1758364232130,-500.0,0.00019988,2]
[386534671,1758364232139,-500.0,0.00019988,2]
[386534673,1758364232149,-151.0,0.00019988,2]
[386534674,1758364232158,-500.0,0.00019988,2]
[386534675,1758364232167,-500.0,0.00019988,2]
[386534676,1758364232177,-151.0,0.00019988,2]
[386534677,1758364232186,-500.0,0.00019988,2]
[386534678,1758364232195,-500.0,0.00019988,2]
[386534679,1758364232205,-500.0,0.00019988,2]
[386534680,1758364232214,-151.0,0.00019988,2]
[386534681,1758364232223,-500.0,0.00019988,2]
[386534682,1758364232233,-500.0,0.00019988,2]
[386534683,1758364232243,-151.0,0.00019988,2]
[386534684,1758364232252,-500.0,0.00019988,2]
[386534685,1758364232261,-151.0,0.00019988,2]
[386534686,1758364232271,-500.0,0.00019988,2]
[386534687,1758364232281,-500.0,0.00019988,2]
[386534688,1758364232290,-500.0,0.00019988,2]
[386534689,1758364232299,-500.0,0.00019988,2]
[386534690,1758364232309,-500.0,0.00019988,2]
[386534691,1758364232319,-151.0,0.00019988,2]
[386534692,1758364232328,-500.0,0.00019988,2]
[386534693,1758364232338,-500.0,0.00019988,2]
[386534694,1758364232347,-151.0,0.00019988,2]
[386534696,1758364232357,-151.0,0.00019988,2]
[386534697,1758364232367,-500.0,0.00019988,2]
[386534698,1758364232377,-500.0,0.00019988,2]
[386534699,1758364232386,-151.0,0.00019988,2]
[386534700,1758364232395,-250.0,0.00019988,2]
[386534701,1758364232405,-151.0,0.00019988,2]
[386534702,1758364232415,-500.0,0.00019988,2]
[386534703,1758364232424,-200.0,0.00019988,2]
[386534704,1758364232435,-500.0,0.00019988,2]
[386534705,1758364232444,-151.0,0.00019988,2]
[386534706,1758364232453,-200.0,0.00019988,2]
[386534707,1758364232463,-500.0,0.00019988,2]
[386534708,1758364232472,-250.0,0.00019988,2]
[386534709,1758364232481,-500.0,0.00019988,2]
[386534710,1758364232491,-500.0,0.00019988,2]
[386534711,1758364232500,-151.0,0.00019988,2]
[386534712,1758364232509,-151.0,0.00019988,2]
[386534713,1758364232519,-500.0,0.00019988,2]
[386534714,1758364232528,-250.0,0.00019988,2]
[386534715,1758364232538,-162.34204763,0.00019988,2]
[386534716,1758364232547,-500.0,0.00019988,2]
[386534717,1758364232556,-151.0,0.00019988,2]
[386534718,1758364232565,-151.0,0.00019988,2]
[386534719,1758364232575,-500.0,0.00019988,2]
[386534720,1758364232584,-250.0,0.00019988,2]
[386534721,1758364232594,-500.0,0.00019988,2]
[386534722,1758364232603,-151.0,0.00019988,2]
[386534723,1758364232613,-151.0,0.00019988,2]
[386534724,1758364232622,-500.0,0.00019988,2]
[386534725,1758364232632,-250.0,0.00019988,2]
[386534726,1758364232641,-151.0,0.00019988,2]
[386534727,1758364232651,-500.0,0.00019988,2]
[386534728,1758364232660,-250.0,0.00019988,2]
[386534729,1758364232669,-151.0,0.00019988,2]
[386534730,1758364232679,-322.6107,0.00019988,2]
[386534731,1758364232688,-500.0,0.00019988,2]
[386534732,1758364232697,-151.0,0.00019988,2]
[386534733,1758364232707,-500.0,0.00019988,2]
[386534734,1758364232716,-250.0,0.00019988,2]
[386534735,1758364232725,-151.0,0.00019988,2]
[386534736,1758364232735,-305.38762886,0.00019988,2]
[386534737,1758364232747,-50.58402198,0.00019988,2]
[386534738,1758364232756,-151.0,0.00019988,2]
[386534739,1758364232766,-127.99047812,0.00019988,2]
[386534740,1758364232822,-329.37099141,0.00019899,2]
[386534741,1758364232833,-170.62900859,0.00019899,2]
[386534742,1758364232843,-372.00952188,0.00019988,2]
[386534743,1758364232855,-151.0,0.00019988,2]
[386534744,1758364232864,-151.0,0.00019988,2]
[386534745,1758364232873,-250.0,0.00019988,2]
[386534746,1758364232882,-151.0,0.00019988,2]
[386534747,1758364232891,-500.0,0.00019988,2]
[386534748,1758364232900,-151.0,0.00019988,2]
[386534749,1758364232909,-250.0,0.00019988,2]
[386534750,1758364232919,-151.0,0.00019988,2]
[386534751,1758364232930,-500.0,0.00019988,2]
[386534752,1758364232940,-154.36979751,0.00019988,2]
[386534753,1758364232949,-210.00672626,0.00019988,2]
[386534754,1758364232959,-272.46957994,0.00019988,2]
[386534755,1758364232968,-151.0,0.00019988,2]
[386534756,1758364232977,-500.0,0.00019988,2]
[386534757,1758364232986,-200.0,0.00019988,2]
[386534758,1758364232995,-200.0,0.00019988,2]
[386534759,1758364233005,-500.0,0.00019988,2]
[386534760,1758364233015,-200.0,0.00019988,2]
[386534761,1758364233025,-500.0,0.00019988,2]
[386534762,1758364233034,-200.0,0.00019988,2]
[386534763,1758364233044,-500.0,0.00019988,2]
[386534764,1758364233053,-200.0,0.00019988,2]
[386534765,1758364233062,-202.03040385,0.00019988,2]
[386534766,1758364233072,-200.0,0.00019988,2]
[386534767,1758364233081,-151.0,0.00019988,2]
[386534768,1758364233091,-200.0,0.00019988,2]
[386534769,1758364233100,-151.0,0.00019988,2]
[386534770,1758364233111,-200.0,0.00019988,2]
[386534771,1758364233121,-250.0,0.00019988,2]
[386534772,1758364233131,-151.0,0.00019988,2]
[386534773,1758364233141,-200.0,0.00019988,2]
[386534774,1758364233151,-151.0,0.00019988,2]
[386534776,1758364233162,-200.0,0.00019988,2]
[386534777,1758364233171,-151.0,0.00019988,2]
[386534778,1758364233181,-200.0,0.00019988,2]
[386534780,1758364233191,-151.0,0.00019988,2]
[386534781,1758364233201,-200.0,0.00019988,2]
[386534782,1758364233212,-200.0,0.00019988,2]
[386534784,1758364233222,-151.0,0.00019988,2]
[386534785,1758364233232,-200.0,0.00019988,2]
[386534787,1758364233243,-200.0,0.00019988,2]
[386534788,1758364233259,-151.0,0.00019988,2]
[386534789,1758364233277,-200.0,0.00019988,2]
[386534791,1758364233289,-169.26330414,0.00019988,2]
[386534792,1758364233299,-151.0,0.00019988,2]
[386534793,1758364233308,-200.0,0.00019988,2]
[386534795,1758364233318,-151.0,0.00019988,2]
[386534796,1758364233327,-200.0,0.00019988,2]
[386534797,1758364233338,-151.0,0.00019988,2]
[386534798,1758364233347,-200.0,0.00019988,2]
[386534800,1758364233357,-151.0,0.00019988,2]
[386534801,1758364233367,-200.0,0.00019988,2]
[386534802,1758364233377,-151.0,0.00019988,2]
[386534804,1758364233386,-500.0,0.00019988,2]
[386534805,1758364233396,-241.88139622,0.00019988,2]
[386534806,1758364233405,-151.0,0.00019988,2]
[386534807,1758364233415,-500.0,0.00019988,2]
[386534809,1758364233425,-282.89287311,0.00019988,2]
[386534810,1758364233435,-500.0,0.00019988,2]
[386534811,1758364233444,-500.0,0.00019988,2]
[386534813,1758364233454,-500.0,0.00019988,2]
[386534814,1758364233463,-646.65982734,0.00019988,2]
[386534815,1758364233473,-500.0,0.00019988,2]
[386534816,1758364233482,-500.0,0.00019988,2]
[386534818,1758364233492,-151.0,0.00019997,2]
[386534819,1758364233502,-190.95533245,0.00019999,2]
[386534820,1758364233511,-400.01,0.0002,2]
[386534821,1758364233521,-500.0,0.0002,2]
[386534823,1758364233530,-500.0,0.0002,2]
[386534824,1758364233541,-8218.09570132,0.0002,2]
[386534825,1758364233551,-153105.11623443,0.0002,2]
[386534828,1758364233605,-500.0,0.00019899,2]
[386534829,1758364233615,-5273.18,0.0002,2]
[386534831,1758364233627,-450.0,0.0002,2]
[386534832,1758364233639,-1030.60615212,0.0002,2]
[386534833,1758364233651,-1262.95300752,0.0002,2]
[386534836,1758364233691,-720.0,0.0002,2]
[386534837,1758364233703,-2505.81409613,0.0002,2]
[386534838,1758364233714,-665.08925045,0.0002,2]
[386534842,1758364233847,-511.06499567,0.0002,2]
[386534849,1758364237519,-837.64,0.0002,2]
[386534850,1758364237680,-138315.68873726,0.0002,2]
[386534851,1758364237738,-5671.314372,0.0002,2]
[386534856,1758364239538,-227193.62024059,0.0002,2]
[386534857,1758364239549,-2487645.69135823,0.0002,2]
[386534859,1758364239699,-1234.02136773,0.0002,2]
[386534862,1758364242818,-151.0,0.00019988,2]
[386534863,1758364242830,-1647.71698726,0.0002,2]
[386534865,1758364245560,-1998.85883626,0.0002,2]
[386534866,1758364245571,-1132.12,0.0002,2]
[386534867,1758364245582,-27871.94375812,0.0002,2]
[386534868,1758364245678,-704.45733331,0.0002,2]
[386534869,1758364245689,-13543.71080051,0.0002,2]
[386534870,1758364245700,-24315.14087716,0.0002,2]
[386534871,1758364245733,-477.27144475,0.0002,2]
[386534872,1758364245746,-49776.53816217,0.0002,2]
[386534873,1758364245814,-290.12577006,0.0002,2]
[386534874,1758364245840,-20746.42426838,0.0002,2]
[386534875,1758364260744,266.77570713,0.00018372,30]
[386534878,1758364309447,1303.54,0.00019139,2]
[386534880,1758364331170,11531.69,0.00019121,2]
[386534881,1758364334505,188.78696965,0.00018372,30]
[386534893,1758364381389,233.70848243,0.00018372,30]
[386534894,1758364384948,1554.23,0.00019076,2]
[386534913,1758364400679,500.0,0.00019181,2]
[386534930,1758364441400,207.83369107,0.00018374,30]
[386534957,1758364499808,346.35783982,0.0001905,2]
[386534958,1758364499837,6343.13216018,0.0001905,2]
[386534959,1758364502283,222.73757089,0.00018374,30]
[386534964,1758364561399,214.15293611,0.00018374,30]
[386535039,1758364625108,166.98,0.00019095,2]
[386535040,1758364627689,365.53,0.00019054,2]
[386535065,1758364645867,150.0,0.00018,2]
[386535066,1758364646231,150.0,0.0001918,2]
[386535069,1758364661680,800.0,0.00030136,120]
[386535118,1758364759677,1634.13,0.00018961,2]
[386535153,1758364930558,1000.0,0.00018978,2]
[386535154,1758364937465,214.50205457,0.00019,2]
[386535160,1758365056778,175.2,9.471e-05,2]
[386535202,1758365105435,273.12,0.00018936,2]
[386535272,1758365170080,150.0,0.00018,2]
[386535273,1758365170452,150.0,0.0001918,2]
[386535288,1758365230768,200.93936177,0.00019159,2]
[386535346,1758365321549,1391.86,0.00018956,2]
[386535347,1758365324839,206.37,0.00018822,2]
[386535403,1758365431781,-151.0,0.00019259,2]
[386535404,1758365431791,-195.0,0.00019259,2]
[386535405,1758365431800,-300.0,0.00019259,2]
[386535406,1758365431810,-189.97285882,0.00019259,2]
[386535407,1758365431835,-2310.02714118,0.00019259,2]
[386535408,1758365431844,-500.0,0.00019259,2]
[386535409,1758365431853,-300.0,0.00019259,2]
[386535410,1758365431863,-125.91961554,0.00019259,2]
[386535411,1758365431874,-124.08038446,0.00019259,2]
[386535412,1758365431884,-1200.0,0.00019261,2]
[386535413,1758365431893,-300.0,0.00019261,2]
[386535414,1758365431903,-850.0,0.00019262,2]
[386535415,1758365431912,-433.24499304,0.00019262,2]
[386535416,1758365431921,-508.34774267,0.00019262,2]
[386535417,1758365431931,-500.0,0.00019262,2]
[386535418,1758365431942,-500.0,0.00019262,2]
[386535419,1758365431951,-500.0,0.00019262,2]
[386535420,1758365431961,-473.26814367,0.00019262,2]
[386535421,1758365431970,-500.0,0.00019262,2]
[386535422,1758365431980,-520.88023778,0.00019262,2]
[386535423,1758365431989,-500.0,0.00019262,2]
[386535424,1758365431999,-500.0,0.00019262,2]
[386535425,1758365432008,-500.0,0.00019262,2]
[386535426,1758365432018,-2500.0,0.00019312,2]
[386535427,1758365432028,-2112.24459792,0.00019312,2]
[386535428,1758365432038,-152.1794307,0.0001952,2]
[386535429,1758365432049,-7965.41053268,0.0001952,2]
[386535430,1758365432058,-166.68,0.00019531,2]
[386535431,1758365432068,-8260.13072239,0.00019575,2]
[386535432,1758365432078,-8307.46595361,0.0001963,2]
[386535433,1758365432090,-258.2896055,0.0001963,2]
[386535434,1758365432100,-337.3492945,0.00019685,2]
[386535435,1758365432168,-3502.76457727,0.00019685,2]
[386535436,1758365432179,-1501.45984793,0.00019685,2]
[386535437,1758365432192,-296.30613985,0.00019685,2]
[386535439,1758365432219,-493.45,0.00019685,2]
[386535440,1758365432231,-1681.41434328,0.00019685,2]
[386535447,1758365432350,-1069.94431197,0.00019685,2]
[386535448,1758365432360,-168.0,0.00019698,2]
[386535449,1758365432371,-9211.34798985,0.0001974,2]
[386535450,1758365432381,-206.37,0.00019763,2]
[386535451,1758365432391,-9552.16786547,0.00019795,2]
[386535452,1758365432401,-200.93936176,0.000198,2]
[386535454,1758365432411,-247.12041,0.000198,2]
[386535456,1758365432421,-9604.80141723,0.000198,2]
[386535458,1758365432431,-842.95167109,0.00019805,2]
[386535460,1758365432440,-156.587,0.00019807,2]
[386535462,1758365432450,-151.0,0.00019816,2]
[386535464,1758365432460,-9905.5980765,0.0001985,2]
[386535465,1758365432469,-326.08951429,0.00019887,2]
[386535466,1758365432478,-500.0,0.00019887,2]
[386535467,1758365432491,-159.2936353,0.00019887,2]
[386535468,1758365432500,-323.75386159,0.00019887,2]
[386535469,1758365432510,-211.85609974,0.00019887,2]
[386535470,1758365432519,-200.0,0.00019888,2]
[386535471,1758365432528,-322.6107,0.00019888,2]
[386535472,1758365432537,-151.0,0.00019888,2]
[386535473,1758365432547,-646.65982734,0.00019888,2]
[386535474,1758365432556,-160.0,0.00019888,2]
[386535475,1758365432565,-500.0,0.00019888,2]
[386535476,1758365432575,-500.0,0.00019888,2]
[386535477,1758365432585,-500.0,0.00019888,2]
[386535478,1758365432594,-500.0,0.00019888,2]
[386535479,1758365432603,-151.0,0.00019888,2]
[386535480,1758365432613,-500.0,0.00019888,2]
[386535481,1758365432622,-151.0,0.00019888,2]
[386535482,1758365432631,-500.0,0.00019888,2]
[386535483,1758365432641,-151.0,0.00019888,2]
[386535484,1758365432651,-500.0,0.00019888,2]
[386535485,1758365432661,-500.0,0.00019888,2]
[386535486,1758365432670,-500.0,0.00019888,2]
[386535487,1758365432680,-151.0,0.00019888,2]
[386535488,1758365432690,-500.0,0.00019888,2]
[386535489,1758365432699,-151.0,0.00019888,2]
[386535490,1758365432709,-500.0,0.00019888,2]
[386535491,1758365432719,-250.0,0.00019888,2]
[386535492,1758365432728,-500.0,0.00019888,2]
[386535493,1758365432737,-151.0,0.00019888,2]
[386535494,1758365432746,-250.0,0.00019888,2]
[386535495,1758365432756,-500.0,0.00019888,2]
[386535496,1758365432765,-500.0,0.00019888,2]
[386535497,1758365432774,-250.0,0.00019888,2]
[386535498,1758365432784,-500.0,0.00019888,2]
[386535499,1758365432794,-151.0,0.00019888,2]
[386535500,1758365432803,-250.0,0.00019888,2]
[386535501,1758365432812,-500.0,0.00019888,2]
[386535502,1758365432823,-500.0,0.00019888,2]
[386535503,1758365432835,-151.0,0.00019888,2]
[386535504,1758365432844,-250.0,0.00019888,2]
[386535505,1758365432854,-500.0,0.00019888,2]
[386535506,1758365432863,-500.0,0.00019888,2]
[386535507,1758365432873,-151.0,0.00019888,2]
[386535508,1758365432883,-250.0,0.00019888,2]
[386535509,1758365432892,-500.0,0.00019888,2]
[386535510,1758365432903,-200.0,0.00019888,2]
[386535511,1758365432912,-151.0,0.00019888,2]
[386535512,1758365432921,-250.0,0.00019888,2]
[386535513,1758365432931,-500.0,0.00019888,2]
[386535514,1758365432940,-151.0,0.00019888,2]
[386535515,1758365432949,-250.0,0.00019888,2]
[386535516,1758365432959,-500.0,0.00019888,2]
[386535517,1758365432968,-151.0,0.00019888,2]
[386535518,1758365432978,-500.0,0.00019888,2]
[386535519,1758365432987,-151.0,0.00019888,2]
[386535520,1758365432996,-250.0,0.00019888,2]
[386535521,1758365433006,-500.0,0.00019888,2]
[386535522,1758365433016,-151.0,0.00019888,2]
[386535523,1758365433025,-500.0,0.00019888,2]
[386535524,1758365433305,-250.0,0.00019888,2]
[386535525,1758365433316,-151.0,0.00019888,2]
[386535526,1758365433326,-500.0,0.00019888,2]
[386535527,1758365433336,-250.0,0.00019888,2]
[386535528,1758365433346,-151.0,0.00019888,2]
[386535529,1758365433356,-500.0,0.00019888,2]
[386535530,1758365433366,-151.0,0.00019888,2]
[386535531,1758365433375,-151.0,0.00019888,2]
[386535532,1758365433387,-500.0,0.00019888,2]
[386535533,1758365433397,-151.0,0.00019888,2]
[386535534,1758365433407,-151.0,0.00019888,2]
[386535535,1758365433417,-1368.43106711,0.0001989,2]
[386535536,1758365433428,-13710.9127,0.000199,2]
[386535537,1758365433437,-42856.29645476,0.000199,2]
[386535538,1758365433447,-1000.0,0.000199,2]
[386535539,1758365433456,-194.01103122,0.000199,2]
[386535540,1758365433466,-805.2,0.000199,2]
[386535541,1758365433475,-472.38,0.000199,2]
[386535542,1758365433486,-472.26,0.000199,2]
[386535543,1758365433496,-823.76,0.000199,2]
[386535544,1758365433505,-247.12042,0.000199,2]
[386535545,1758365433515,-5000.0,0.000199,2]
[386535546,1758365433525,-39329.85635313,0.000199,2]
[386535547,1758365433535,-10272.10520533,0.00019905,2]
[386535548,1758365433544,-76942.0,0.0001991,2]
[386535549,1758365433554,-168.0,0.00019933,2]
[386535550,1758365433564,-10652.17309792,0.0001996,2]
[386535551,1758365433575,-500.0,0.00019973,2]
[386535552,1758365433584,-500.0,0.00019973,2]
[386535553,1758365433594,-500.0,0.00019973,2]
[386535554,1758365433604,-500.0,0.00019973,2]
[386535555,1758365433613,-500.0,0.00019973,2]
[386535556,1758365433623,-500.0,0.00019973,2]
[386535557,1758365433633,-500.0,0.00019973,2]
[386535558,1758365433643,-500.0,0.00019973,2]
[386535559,1758365433652,-500.0,0.00019973,2]
[386535560,1758365433661,-500.0,0.00019973,2]
[386535561,1758365433671,-500.34,0.0001999,2]
[386535562,1758365433680,-512.52,0.0001999,2]
[386535563,1758365433690,-150.0,0.00019992,2]
[386535564,1758365433699,-150.35354847,0.00019992,2]
[386535565,1758365433709,-150.0,0.00019992,2]
[386535566,1758365433718,-150.80091383,0.00019992,2]
[386535567,1758365433728,-150.0,0.00019992,2]
[386535568,1758365433738,-150.0,0.00019992,2]
[386535569,1758365433747,-500.0,0.00019992,2]
[386535570,1758365433757,-150.0,0.00019992,2]
[386535571,1758365433767,-500.0,0.00019992,2]
[386535572,1758365433776,-152.12499264,0.00019992,2]
[386535573,1758365433786,-150.32705951,0.00019992,2]
[386535574,1758365433795,-150.0,0.00019992,2]
[386535575,1758365433805,-500.0,0.00019992,2]
[386535576,1758365433815,-3037.0,0.00019992,2]
[386535577,1758365433825,-212.3451087,0.00019992,2]
[386535578,1758365433835,-500.0,0.00019992,2]
[386535579,1758365433845,-856.0,0.00019992,2]
[386535580,1758365433855,-150.0,0.00019992,2]
[386535581,1758365433865,-500.0,0.00019992,2]
[386535582,1758365433875,-151.03140511,0.00019992,2]
[386535583,1758365433884,-150.0,0.00019992,2]
[386535584,1758365433893,-150.0,0.00019992,2]
[386535585,1758365433903,-150.0,0.00019992,2]
[386535586,1758365433913,-500.0,0.00019992,2]
[386535587,1758365433922,-500.0,0.00019992,2]
[386535588,1758365433932,-492.0,0.00019992,2]
[386535589,1758365433942,-730.0,0.00019992,2]
[386535590,1758365433952,-500.0,0.00019992,2]
[386535591,1758365433962,-500.0,0.00019992,2]
[386535592,1758365433972,-150.0,0.00019992,2]
[386535593,1758365433982,-150.0,0.00019992,2]
[386535594,1758365433991,-150.0,0.00019992,2]
[386535595,1758365434002,-452.0,0.00019992,2]
[386535596,1758365434011,-150.0,0.00019992,2]
[386535597,1758365434022,-200.0,0.00019992,2]
[386535598,1758365434032,-1060.0,0.00019992,2]
[386535599,1758365434043,-549.0,0.00019992,2]
[386535600,1758365434052,-150.0,0.00019992,2]
[386535601,1758365434062,-150.0,0.00019992,2]
[386535602,1758365434072,-500.0,0.00019992,2]
[386535603,1758365434083,-500.0,0.00019992,2]
[386535604,1758365434092,-150.0,0.00019992,2]
[386535605,1758365434102,-151.0,0.00019997,2]
[386535606,1758365434112,-4109.04785066,0.0002,2]
[386535607,1758365434122,-3408.71211633,0.0002,2]
[386535608,1758365434135,-1150.45,0.0002,2]
[386535609,1758365434147,-1075.21999539,0.0002,2]
[386535610,1758365434167,-17122.88097149,0.0002,2]
[386535611,1758365434191,-512.25234728,0.0002,2]
[386535612,1758365434203,-858.91928225,0.0002,2]
[386535613,1758365434215,-6618.64451849,0.0002,2]
[386535614,1758365434237,-370.63653507,0.0002,2]
[386535624,1758365437763,-168.98669309,0.00019261,2]
[386535626,1758365437773,-158.96825894,0.0002,2]
[386535628,1758365437785,-500.0,0.0002,2]
[386535631,1758365437796,-4485.13199616,0.0002,2]
[386535633,1758365437808,-754.56966197,0.0002,2]
[386535635,1758365437831,-20683.16048425,0.0002,2]
[386535636,1758365437859,-12198.30627695,0.0002,2]
[386535637,1758365437947,-5000.00111123,0.0002,2]
[386535638,1758365438016,-3311.46928,0.0002,2]
[386535661,1758365439681,-68705.99456198,0.0002,2]
[386535662,1758365439693,-271647.93070167,0.0002,2]
[386535663,1758365439703,-1456175.93440707,0.0002,2]
[386535664,1758365439712,-152.78144847,0.0002,2]
[386535665,1758365439722,-150.0,0.0002,2]
[386535666,1758365439731,-7897.69174106,0.0002,2]
[386535667,1758365439741,-3196.41,0.0002,2]
[386535668,1758365439750,-2000.0,0.0002,2]
[386535669,1758365439760,-258412.92091562,0.0002,2]
[386535670,1758365439771,-151.0,0.0002,2]
[386535671,1758365439781,-2281.62431517,0.0002,2]
[386535672,1758365439790,-2281.62431516,0.0002,2]
[386535673,1758365439800,-2281.62431516,0.0002,2]
[386535674,1758365439809,-2281.62431516,0.0002,2]
[386535675,1758365439819,-2281.62431516,0.0002,2]
[386535676,1758365439828,-2281.62431516,0.0002,2]
[386535677,1758365439837,-2281.62431516,0.0002,2]
[386535678,1758365439847,-2281.62431516,0.0002,2]
[386535679,1758365439855,-2281.62431516,0.0002,2]
[386535680,1758365439865,-2281.62431516,0.0002,2]
[386535681,1758365439875,-2281.62431516,0.0002,2]
[386535682,1758365439884,-2281.62431516,0.0002,2]
[386535683,1758365439893,-500.0,0.0002,2]
[386535684,1758365439903,-500.0,0.0002,2]
[386535685,1758365439913,-200000.0,0.0002,2]
[386535686,1758365439923,-486675.150603,0.0002,2]
[386535688,1758365440133,-399.60511496,0.0002,2]
[386535689,1758365440145,-6601.52174531,0.0002,2]
[386535690,1758365440156,-3556.03280771,0.0002,2]
[386535691,1758365440183,-534.79126136,0.0002,2]
[386535692,1758365440194,-38551.15771016,0.0002,2]
[386535693,1758365440209,-19889.44336592,0.0002,2]
[386535694,1758365440220,-1152.4002,0.0002,2]
[386535695,1758365440232,-2554.72909684,0.0002,2]
[386535696,1758365440263,-683.17155163,0.0002,2]
[386535700,1758365440379,-2278.59406476,0.0002,2]
[386535710,1758365442898,-6717.95913,0.0002,2]
[386535711,1758365442952,-1000.0898523,0.0002,2]
[386535712,1758365442964,-607.399843,0.0002,2]
[386535713,1758365442975,-313.62008107,0.0002,2]
[386535714,1758365442998,-2682.91018403,0.0002,2]
[386535715,1758365443040,-35975.45308668,0.0002,2]
[386535716,1758365443052,-1000.0,0.0002,2]
[386535717,1758365443064,-872.26117996,0.0002,2]
[386535718,1758365443144,-193749.96026424,0.0002,2]
[386535757,1758365446016,-126817.11492616,0.0002,2]
[386535758,1758365446039,-860.09500577,0.0002,2]
[386535759,1758365446050,-741.09194007,0.0002,2]
[386535760,1758365446073,-5110.44262223,0.0002,2]
[386535761,1758365446084,-16061.4142929,0.0002,2]
[386535762,1758365446211,-460.16156562,0.0002,2]
[386535773,1758365446326,-4659.46283433,0.0002,2]
[386536131,1758365473997,773.903477,0.00019164,2]
[386536140,1758365598889,250.0,0.0001904,2]
[386536145,1758365693019,150.0,0.00018,2]
[386536146,1758365693363,150.0,0.0001918,2]
[386536148,1758365721292,1000.0,0.00018,2]
[386536149,1758365722412,873.67,0.00019054,2]
[386536154,1758365764841,170.05,0.00019039,2]
[386536167,1758365792798,150.0,0.00019008,7]
[386536213,1758365866921,1000.0,0.00018939,2]
[386536242,1758365999618,158.93,9.461e-05,2]
[386536243,1758365999813,158.93,0.00018922,2]
[386536259,1758366031515,306.02,0.00018912,2]
[386536262,1758366037565,493.45,0.00018912,3]
[386536302,1758366175753,152.24,0.00018928,2]
[386536305,1758366210034,5778.54,0.00018917,2]
[386536306,1758366215994,150.0,0.00018,2]
[386536307,1758366216534,150.0,0.0001918,2]
[386536313,1758366249149,5580.22,0.00018918,2]
[386536314,1758366253931,214.58,0.00018918,2]
[386536316,1758366282873,150.0,0.00018922,2]
[386536320,1758366308769,150.0,0.00018,2]
[386536321,1758366308824,150.0,0.000185,2]
[386536322,1758366308882,150.0,0.00019,2]
[386536323,1758366312489,150.0,0.00018,2]
[386536324,1758366316320,271.25720624,0.00018,2]
[386536325,1758366318696,150.0,0.00018,2]
[386536326,1758366318859,150.0,0.00018,2]
[386536327,1758366320193,150.0,0.00018,2]
[386536328,1758366326436,150.0,0.00018,2]
[386536329,1758366331521,150.0,0.00018,2]